[Event "White Rook U14 Final 2019"]
[Site "Sochi"]
[Date "2019.06.06"]
[Round "5.28"]
[White "Golikova, Alisa"]
[Black "Mkrtchian, Anait"]
[Result "1-0"]
[ECO "C58"]
[WhiteElo "1252"]
[BlackElo "1165"]
[Annotator "NA RC"]
[PlyCount "107"]
[EventDate "2019.06.02"]
[EventCountry "RUS"]
[SourceTitle "playchess.com"]
[Source "ChessBase"]
[SourceQuality "1"]
[TimeControl "5400+30"]

1. e4 {[%emt 0:00:00]} e5 {[%emt 0:00:08]} 2. Nf3 {[%emt 0:00:00]} Nc6 {[%emt 0:00:08]} 3. Bc4 {[%emt 0:00:00]} Nf6 {[%emt 0:00:23]} 4. Ng5 {[%emt 0:00:09]} d5 {[%emt 0:00:08]} 5. exd5 {[%emt 0:00:08]} Na5 {[%emt 0:02:34]} 6. Bb5+ {[%emt 0:00:25]} c6 {[%emt 0:00:08]} 7. dxc6 {[%emt 0:00:08]} bxc6 {[%emt 0:00:08]} 8. Qf3 {[%emt 0:02:55]} h6 {[%emt 0:01:44]} 9. Ne4 {[%emt 0:05:52]} Nd5 {[%emt 0:04:25]} 10. Nbc3 {[%emt 0:10:02]} Nb4 {[%emt 0:03:19]} 11. Ba4 {[%emt 0:04:41]} Bb7 {[%emt 0:11:06]} 12. a3 {[%emt 0:03:28]} Na6 {[%emt 0:07:40]} 13. b4 {[%emt 0:04:10]} Qd7 {[%emt 0:06:50]} 14. bxa5 {[%emt 0:02:16]} f5 {[%emt 0:03:06]} 15. Qh5+ {[%emt 0:02:24]} Kd8 {[%emt 0:00:25]} 16. Ng5 {[%emt 0:02:04]} g6 {[%emt 0:01:05]} 17. Qxg6 {[%emt 0:00:22]} Be7 {[%emt 0:04:38]} 18. Nf7+ {[%emt 0:04:39]} Kc7 {[%emt 0:01:04]} 19. Nxh8 {[%emt 0:00:24]} Rxh8 {[%emt 0:02:45]} 20. Qg3 {[%emt 0:00:24]} Qd4 {[%emt 0:00:46]} 21. Bb2 {[%emt 0:03:09]} Kc8 {[%emt 0:01:51]} 22. Qe3 {[%emt 0:00:47]} Qd6 {[%emt 0:04:40]} 23. Qd3 {[%emt 0:02:06]} Qg6 {[%emt 0:06:37]} 24. O-O-O {[%emt 0:00:38]} Nc5 {[%emt 0:01:41]} 25. Qg3 {[%emt 0:00:28]} Qe6 {[%emt 0:00:52]} 26. Rhe1 {[%emt 0:00:36]} f4 {[%emt 0:00:58]} 27. Qh3 {[%emt 0:00:37]} Qxh3 {[%emt 0:02:57]} 28. gxh3 {[%emt 0:00:21]} Nxa4 {[%emt 0:00:00]} 29. Nxa4 {[%emt 0:00:34]} c5 {[%emt 0:00:06]} 30. Rxe5 {[%emt 0:00:20]} Bd6 {[%emt 0:00:20]} 31. Re6 {[%emt 0:01:54]} Rd8 {[%emt 0:02:17]} 32. Rxh6 {[%emt 0:00:39]} f3 {[%emt 0:01:24]} 33. h4 {[%emt 0:00:40]} Bxh2 {[%emt 0:01:44]} 34. Nxc5 {[%emt 0:00:33]} Ba8 {[%emt 0:00:39]} 35. Nd3 {[%emt 0:01:30]} Rd7 {[%emt 0:01:08]} 36. Rh1 {[%emt 0:00:58]} Bc7 {[%emt 0:00:31]} 37. Rh8+ {[%emt 0:00:31]} Bd8 {[%emt 0:00:30]} 38. Bf6 {[%emt 0:00:24]} Be4 {[%emt 0:00:18]} 39. Bxd8 {[%emt 0:00:18]} Rxd8 {[%emt 0:00:19]} 40. Rxd8+ {[%emt 0:00:06]} Kxd8 {[%emt 0:00:06]} 41. h5 {[%emt 0:00:07]} Bh7 {[%emt 0:00:00]} 42. Ne5 {[%emt 0:00:29]} Ke7 {[%emt 0:00:12]} 43. Nxf3 {[%emt 0:00:12]} Kf8 {[%emt 0:00:00]} 44. Ng5 {[%emt 0:00:12]} Kg8 {[%emt 0:00:07]} 45. Nxh7 {[%emt 0:00:18]} Kxh7 {[%emt 0:00:06]} 46. f4 {[%emt 0:00:18]} Kg7 {[%emt 0:00:06]} 47. h6+ {[%emt 0:00:12]} Kh7 {[%emt 0:00:06]} 48. Rg1 {[%emt 0:00:06]} Kxh6 {[%emt 0:00:06]} 49. f5 {[%emt 0:00:18]} Kh5 {[%emt 0:00:06]} 50. f6 {[%emt 0:00:06]} Kh4 {[%emt 0:00:07]} 51. f7 {[%emt 0:00:12]} Kh3 {[%emt 0:00:06]} 52. f8=Q {[%emt 0:00:06]} Kh2 {[%emt 0:00:06]} 53. Rg8 {[%emt 0:00:06]} Kh3 {[%emt 0:00:06]} 54. Qh6# {[%emt 0:00:06]} 1-0

[Event "White Rook U14 Final 2019"]
[Site "Sochi"]
[Date "2019.06.06"]
[Round "5.29"]
[White "Shakhov, Dmitriy"]
[Black "Efimov, Leonid"]
[Result "1/2-1/2"]
[ECO "D44"]
[WhiteElo "1624"]
[BlackElo "1666"]
[Annotator "NA RC"]
[PlyCount "86"]
[EventDate "2019.06.02"]
[EventCountry "RUS"]
[SourceTitle "playchess.com"]
[Source "ChessBase"]
[SourceQuality "1"]
[TimeControl "5400+30"]

1. d4 {[%emt 0:00:00]} d5 {[%emt 0:00:07]} 2. c4 {[%emt 0:00:08]} e6 {[%emt 0:00:00]} 3. Nc3 {[%emt 0:00:08]} c6 {[%emt 0:00:08]} 4. Nf3 {[%emt 0:00:41]} Nf6 {[%emt 0:00:08]} 5. Bg5 {[%emt 0:00:08]} dxc4 {[%emt 0:00:17]} 6. e3 {[%emt 0:02:41]} b5 {[%emt 0:00:08]} 7. a4 {[%emt 0:00:32]} Bb4 {[%emt 0:02:15]} 8. axb5 {[%emt 0:03:44]} cxb5 {[%emt 0:00:16]} 9. Be2 {[%emt 0:00:32]} Bb7 {[%emt 0:01:04]} 10. O-O {[%emt 0:01:04]} a6 {[%emt 0:00:24]} 11. Ne5 {[%emt 0:03:53]} h6 {[%emt 0:10:42]} 12. Bh4 {[%emt 0:02:40]} Bxc3 {[%emt 0:07:04]} 13. bxc3 {[%emt 0:00:33]} Nbd7 {[%emt 0:01:51]} 14. Bf3 {[%emt 0:21:04]} Qb6 {[%emt 0:02:25]} 15. Nxd7 {[%emt 0:09:15]} Nxd7 {[%emt 0:00:40]} 16. Bxb7 {[%emt 0:00:16]} Qxb7 {[%emt 0:00:16]} 17. Qg4 {[%emt 0:00:16]} O-O {[%emt 0:05:34]} 18. f4 {[%emt 0:02:35]} Qe4 {[%emt 0:00:40]} 19. Rf3 {[%emt 0:12:37]} Nb6 {[%emt 0:06:33]} 20. Rg3 {[%emt 0:04:49]} g6 {[%emt 0:00:31]} 21. Be7 {[%emt 0:08:24]} Rfe8 {[%emt 0:01:55]} 22. Qh4 {[%emt 0:00:21]} Kh7 {[%emt 0:02:41]} 23. Rh3 {[%emt 0:01:56]} h5 {[%emt 0:04:56]} 24. g4 {[%emt 0:02:22]} Rg8 {[%emt 0:06:43]} 25. Kf2 {[%emt 0:13:02]} Nd5 {[%emt 0:02:08]} 26. gxh5 {[%emt 0:05:22]} g5 {[%emt 0:00:22]} 27. Bxg5 {[%emt 0:02:10]} f6 {[%emt 0:00:28]} 28. Qg3 {[%emt 0:01:29]} fxg5 {[%emt 0:00:48]} 29. fxg5 {[%emt 0:00:05]} Raf8+ {[%emt 0:00:57]} 30. Kg1 {[%emt 0:01:25]} Rxg5 {[%emt 0:01:29]} 31. Qxg5 {[%emt 0:00:09]} Rg8 {[%emt 0:00:09]} 32. Qxg8+ {[%emt 0:00:28]} Kxg8 {[%emt 0:00:14]} 33. h6 {[%emt 0:00:25]} Nxe3 {[%emt 0:00:40]} 34. Rg3+ {[%emt 0:00:12]} Kh7 {[%emt 0:01:47]} 35. Re1 {[%emt 0:00:08]} Kxh6 {[%emt 0:00:43]} 36. Rgxe3 {[%emt 0:00:22]} Qg4+ {[%emt 0:00:33]} 37. Kf1 {[%emt 0:00:53]} Qf4+ {[%emt 0:04:06]} 38. Kg1 {[%emt 0:00:08]} Qg5+ {[%emt 0:00:49]} 39. Kf2 {[%emt 0:00:16]} Qf5+ {[%emt 0:01:33]} 40. Kg1 {[%emt 0:00:23]} Qg6+ {[%emt 0:00:46]} 41. Kf1 {[%emt 0:01:00]} Qf7+ {[%emt 0:01:31]} 42. Kg1 {[%emt 0:00:14]} Qg6+ {[%emt 0:00:47]} 43. Kf1 {[%emt 0:00:17]} Qf5+ {[%emt 0:01:07]} 1/2-1/2

[Event "White Rook U14 Final 2019"]
[Site "Sochi"]
[Date "2019.06.06"]
[Round "5.30"]
[White "Ivanov, Matvei"]
[Black "Bratov, Ademir"]
[Result "0-1"]
[ECO "C54"]
[WhiteElo "1529"]
[BlackElo "1725"]
[Annotator "NA RC"]
[PlyCount "126"]
[EventDate "2019.06.02"]
[EventCountry "RUS"]
[SourceTitle "playchess.com"]
[Source "ChessBase"]
[SourceQuality "1"]
[TimeControl "5400+30"]

1. e4 {[%emt 0:00:00]} e5 {[%emt 0:00:08]} 2. Nf3 {[%emt 0:00:00]} Nc6 {[%emt 0:00:08]} 3. Bc4 {[%emt 0:00:08]} Bc5 {[%emt 0:00:07]} 4. c3 {[%emt 0:00:33]} Nf6 {[%emt 0:00:24]} 5. d3 {[%emt 0:00:08]} d6 {[%emt 0:00:41]} 6. O-O {[%emt 0:00:33]} a6 {[%emt 0:01:04]} 7. a4 {[%emt 0:00:56]} O-O {[%emt 0:00:24]} 8. Nbd2 {[%emt 0:01:04]} Ne7 {[%emt 0:00:40]} 9. b4 {[%emt 0:03:44]} Ba7 {[%emt 0:00:08]} 10. Bb2 {[%emt 0:19:07]} Ng6 {[%emt 0:04:55]} 11. d4 {[%emt 0:02:57]} Qe7 {[%emt 0:05:36]} 12. Re1 {[%emt 0:02:00]} Nf4 {[%emt 0:09:00]} 13. Qc2 {[%emt 0:04:58]} N6h5 {[%emt 0:04:26]} 14. Nf1 {[%emt 0:04:25]} Qf6 {[%emt 0:02:57]} 15. Ne3 {[%emt 0:16:53]} Nxg2 {[%emt 0:09:53]} 16. Kxg2 {[%emt 0:08:38]} Bh3+ {[%emt 0:00:15]} 17. Kg1 {[%emt 0:00:16]} Qxf3 {[%emt 0:00:38]} 18. Be2 {[%emt 0:00:32]} Qf4 {[%emt 0:00:08]} 19. Bxh5 {[%emt 0:01:03]} Qg5+ {[%emt 0:00:08]} 20. Bg4 {[%emt 0:02:02]} Bxg4 {[%emt 0:00:07]} 21. Nxg4 {[%emt 0:00:00]} Qxg4+ {[%emt 0:00:08]} 22. Kh1 {[%emt 0:00:23]} f5 {[%emt 0:02:06]} 23. Re3 {[%emt 0:00:14]} f4 {[%emt 0:00:50]} 24. f3 {[%emt 0:04:40]} Qh3 {[%emt 0:00:07]} 25. Rd3 {[%emt 0:00:07]} Rf6 {[%emt 0:02:15]} 26. Rg1 {[%emt 0:00:27]} Qe6 {[%emt 0:04:57]} 27. Rd2 {[%emt 0:01:05]} Rg6 {[%emt 0:01:44]} 28. Rdg2 {[%emt 0:00:14]} Rxg2 {[%emt 0:01:11]} 29. Qxg2 {[%emt 0:00:07]} Qf6 {[%emt 0:00:32]} 30. Rd1 {[%emt 0:02:52]} Rd8 {[%emt 0:09:45]} 31. Qd2 {[%emt 0:01:34]} exd4 {[%emt 0:07:16]} 32. cxd4 {[%emt 0:00:11]} d5 {[%emt 0:00:45]} 33. e5 {[%emt 0:01:07]} Qf5 {[%emt 0:01:08]} 34. Qc3 {[%emt 0:00:50]} c6 {[%emt 0:02:11]} 35. Rg1 {[%emt 0:00:24]} Re8 {[%emt 0:01:40]} 36. b5 {[%emt 0:03:58]} axb5 {[%emt 0:03:00]} 37. axb5 {[%emt 0:00:00]} Qe6 {[%emt 0:04:30]} 38. Qa5 {[%emt 0:02:10]} Bb8 {[%emt 0:02:21]} 39. b6 {[%emt 0:01:08]} Qh3 {[%emt 0:00:38]} 40. Qc3 {[%emt 0:00:11]} c5 {[%emt 0:03:00]} 41. Qb3 {[%emt 0:02:46]} c4 {[%emt 0:00:47]} 42. Qa3 {[%emt 0:01:24]} g6 {[%emt 0:03:06]} 43. Rg2 {[%emt 0:01:48]} Qe6 {[%emt 0:00:40]} 44. Qa5 {[%emt 0:00:39]} Rc8 {[%emt 0:01:45]} 45. Bc3 {[%emt 0:00:35]} h6 {[%emt 0:01:16]} 46. Rb2 {[%emt 0:00:32]} Kh7 {[%emt 0:00:48]} 47. Rg2 {[%emt 0:00:56]} Rc6 {[%emt 0:01:05]} 48. Qa8 {[%emt 0:00:38]} Qc8 {[%emt 0:01:59]} 49. Qa5 {[%emt 0:00:05]} Qd8 {[%emt 0:00:47]} 50. Rb2 {[%emt 0:00:27]} Qd7 {[%emt 0:00:15]} 51. Kg2 {[%emt 0:00:27]} g5 {[%emt 0:00:42]} 52. Qa8 {[%emt 0:00:35]} Rc8 {[%emt 0:00:11]} 53. Re2 {[%emt 0:02:32]} Bxe5 {[%emt 0:01:27]} 54. Qa2 {[%emt 0:03:00]} Bf6 {[%emt 0:01:17]} 55. Qc2+ {[%emt 0:00:38]} Kg7 {[%emt 0:00:11]} 56. Be1 {[%emt 0:00:15]} Re8 {[%emt 0:00:05]} 57. Rxe8 {[%emt 0:02:21]} Qxe8 {[%emt 0:00:56]} 58. Bf2 {[%emt 0:00:11]} Qc6 {[%emt 0:00:03]} 59. Qf5 {[%emt 0:00:03]} c3 {[%emt 0:00:18]} 60. h4 {[%emt 0:00:04]} gxh4 {[%emt 0:00:05]} 61. Qg4+ {[%emt 0:00:17]} Bg5 {[%emt 0:01:07]} 62. Bxh4 {[%emt 0:00:10]} c2 {[%emt 0:00:26]} 63. Bxg5 {[%emt 0:00:22]} hxg5 {[%emt 0:00:08]} 0-1

[Event "White Rook U14 Final 2019"]
[Site "Sochi"]
[Date "2019.06.06"]
[Round "5.31"]
[White "Druchenko, Mikhail"]
[Black "Valiev, Ravil"]
[Result "1-0"]
[ECO "C02"]
[WhiteElo "1774"]
[BlackElo "1458"]
[Annotator "NA RC"]
[PlyCount "67"]
[EventDate "2019.06.02"]
[EventCountry "RUS"]
[SourceTitle "playchess.com"]
[Source "ChessBase"]
[SourceQuality "1"]
[TimeControl "5400+30"]

1. e4 {[%emt 0:00:00]} e6 {[%emt 0:00:16]} 2. d4 {[%emt 0:00:00]} d5 {[%emt 0:00:08]} 3. e5 {[%emt 0:00:00]} c5 {[%emt 0:00:15]} 4. c3 {[%emt 0:00:00]} Qb6 {[%emt 0:00:09]} 5. Nf3 {[%emt 0:00:08]} Bd7 {[%emt 0:00:08]} 6. a3 {[%emt 0:00:49]} cxd4 {[%emt 0:00:24]} 7. cxd4 {[%emt 0:00:08]} Bb5 {[%emt 0:00:08]} 8. Bd3 {[%emt 0:00:41]} Bxd3 {[%emt 0:00:24]} 9. Qxd3 {[%emt 0:00:09]} Nc6 {[%emt 0:00:16]} 10. O-O {[%emt 0:00:00]} a5 {[%emt 0:01:51]} 11. Nc3 {[%emt 0:02:24]} Nge7 {[%emt 0:00:32]} 12. Na4 {[%emt 0:03:43]} Qd8 {[%emt 0:03:37]} 13. Be3 {[%emt 0:07:46]} Nf5 {[%emt 0:01:20]} 14. Bd2 {[%emt 0:02:32]} Be7 {[%emt 0:04:33]} 15. g4 {[%emt 0:04:15]} Nh6 {[%emt 0:07:05]} 16. h3 {[%emt 0:02:40]} O-O {[%emt 0:03:47]} 17. Nc3 {[%emt 0:02:31]} Kh8 {[%emt 0:13:10]} 18. Ne2 {[%emt 0:02:09]} Re8 {[%emt 0:08:03]} 19. Ng3 {[%emt 0:03:07]} Bf8 {[%emt 0:03:16]} 20. Ng5 {[%emt 0:00:49]} g6 {[%emt 0:00:49]} 21. f4 {[%emt 0:01:21]} Rc8 {[%emt 0:15:43]} 22. Kh1 {[%emt 0:04:49]} Be7 {[%emt 0:19:17]} 23. Nf3 {[%emt 0:02:36]} Qd7 {[%emt 0:01:06]} 24. f5 {[%emt 0:06:05]} Ng8 {[%emt 0:07:09]} 25. Ng5 {[%emt 0:04:45]} Bf8 {[%emt 0:01:12]} 26. fxe6 {[%emt 0:01:10]} fxe6 {[%emt 0:02:10]} 27. Rf7 {[%emt 0:00:24]} Re7 {[%emt 0:01:15]} 28. Raf1 {[%emt 0:00:06]} Bg7 {[%emt 0:00:46]} 29. Nh5 {[%emt 0:01:19]} Bh6 {[%emt 0:01:47]} 30. Rxe7 {[%emt 0:00:23]} Qxe7 {[%emt 0:01:01]} 31. Nf7+ {[%emt 0:00:11]} Qxf7 {[%emt 0:01:30]} 32. Rxf7 {[%emt 0:00:06]} Bxd2 {[%emt 0:00:45]} 33. Qxd2 {[%emt 0:00:06]} gxh5 {[%emt 0:00:22]} 34. Qd3 {[%emt 0:00:06]} 1-0

[Event "White Rook U14 Final 2019"]
[Site "Sochi"]
[Date "2019.06.06"]
[Round "5.32"]
[White "Magizova, Yana"]
[Black "Kuskova, Ruslana"]
[Result "1-0"]
[ECO "C47"]
[WhiteElo "1585"]
[BlackElo "1177"]
[Annotator "NA RC"]
[PlyCount "73"]
[EventDate "2019.06.02"]
[EventCountry "RUS"]
[SourceTitle "playchess.com"]
[Source "ChessBase"]
[SourceQuality "1"]
[TimeControl "5400+30"]

1. e4 {[%emt 0:00:00]} e5 {[%emt 0:00:08]} 2. Nf3 {[%emt 0:00:08]} Nc6 {[%emt 0:00:08]} 3. Nc3 {[%emt 0:00:24]} Nf6 {[%emt 0:00:40]} 4. d3 {[%emt 0:00:17]} h6 {[%emt 0:03:05]} 5. g3 {[%emt 0:01:12]} Bb4 {[%emt 0:01:04]} 6. Bd2 {[%emt 0:02:00]} d6 {[%emt 0:02:24]} 7. Bg2 {[%emt 0:00:23]} a6 {[%emt 0:02:40]} 8. O-O {[%emt 0:01:05]} Bc5 {[%emt 0:00:32]} 9. Kh1 {[%emt 0:01:04]} O-O {[%emt 0:00:24]} 10. h3 {[%emt 0:00:33]} Be6 {[%emt 0:03:20]} 11. Nh4 {[%emt 0:01:21]} Qd7 {[%emt 0:03:28]} 12. g4 {[%emt 0:01:04]} Nh7 {[%emt 0:08:32]} 13. Nf5 {[%emt 0:02:33]} Bxf5 {[%emt 0:10:58]} 14. gxf5 {[%emt 0:00:16]} Qe7 {[%emt 0:02:00]} 15. Nd5 {[%emt 0:04:50]} Qd8 {[%emt 0:02:25]} 16. f4 {[%emt 0:02:09]} Nf6 {[%emt 0:10:12]} 17. Nxf6+ {[%emt 0:07:23]} Qxf6 {[%emt 0:00:25]} 18. c3 {[%emt 0:01:06]} Ba7 {[%emt 0:07:18]} 19. Qg4 {[%emt 0:00:40]} exf4 {[%emt 0:03:43]} 20. Bxf4 {[%emt 0:01:35]} Ne5 {[%emt 0:00:40]} 21. Qg3 {[%emt 0:00:24]} c5 {[%emt 0:04:26]} 22. Rad1 {[%emt 0:04:28]} Rad8 {[%emt 0:04:57]} 23. d4 {[%emt 0:01:02]} cxd4 {[%emt 0:00:54]} 24. cxd4 {[%emt 0:00:07]} Nc6 {[%emt 0:00:15]} 25. e5 {[%emt 0:01:02]} dxe5 {[%emt 0:07:00]} 26. Bxe5 {[%emt 0:03:30]} Qg5 {[%emt 0:02:38]} 27. Qxg5 {[%emt 0:02:08]} hxg5 {[%emt 0:00:14]} 28. Bxc6 {[%emt 0:05:26]} bxc6 {[%emt 0:00:20]} 29. f6 {[%emt 0:01:25]} gxf6 {[%emt 0:04:11]} 30. Rxf6 {[%emt 0:01:28]} Rc8 {[%emt 0:00:37]} 31. Rg1 {[%emt 0:01:12]} Rfd8 {[%emt 0:04:31]} 32. Rh6 {[%emt 0:04:24]} f6 {[%emt 0:05:10]} 33. Bxf6 {[%emt 0:01:02]} Rd5 {[%emt 0:03:38]} 34. Rh8+ {[%emt 0:00:59]} Kf7 {[%emt 0:00:10]} 35. Rxc8 {[%emt 0:00:12]} Kxf6 {[%emt 0:00:15]} 36. Rf1+ {[%emt 0:00:24]} Ke7 {[%emt 0:00:55]} 37. Rc7+ {[%emt 0:00:20]} 1-0

[Event "White Rook U14 Final 2019"]
[Site "Sochi"]
[Date "2019.06.06"]
[Round "5.33"]
[White "Bunin, Serafim"]
[Black "Mongush, Kezhik"]
[Result "1-0"]
[ECO "B26"]
[WhiteElo "1804"]
[BlackElo "1824"]
[Annotator "NA RC"]
[PlyCount "61"]
[EventDate "2019.06.02"]
[EventCountry "RUS"]
[SourceTitle "playchess.com"]
[Source "ChessBase"]
[SourceQuality "1"]
[TimeControl "5400+30"]

1. e4 {[%emt 0:00:00]} c5 {[%emt 0:00:08]} 2. Nc3 {[%emt 0:00:08]} Nc6 {[%emt 0:00:00]} 3. g3 {[%emt 0:00:08]} g6 {[%emt 0:00:00]} 4. Bg2 {[%emt 0:00:15]} Bg7 {[%emt 0:00:00]} 5. d3 {[%emt 0:00:00]} d6 {[%emt 0:00:09]} 6. Be3 {[%emt 0:00:24]} e5 {[%emt 0:00:00]} 7. Qd2 {[%emt 0:00:16]} Nge7 {[%emt 0:00:33]} 8. Bh6 {[%emt 0:14:01]} O-O {[%emt 0:00:08]} 9. h4 {[%emt 0:02:48]} f6 {[%emt 0:00:17]} 10. Bxg7 {[%emt 0:00:08]} Kxg7 {[%emt 0:00:08]} 11. h5 {[%emt 0:00:40] B26: Closed Sicilian: 3 g3, lines with early Be3} g5 {[%emt 0:00:00]} 12. f4 {[%emt 0:12:02]} gxf4 $146 {[%emt 0:04:15]} ({Predecessor:} 12... h6 13. Bh3 Nd4 14. O-O-O b5 15. Nce2 Nec6 16. c3 Nxe2+ 17. Nxe2 d5 18. d4 Bxh3 19. Rxh3 cxd4 20. exd5 Qxd5 {½-½ (41) Pakhomov,A (2439)-Swinkels,R (2499) Teplice 2009}) 13. gxf4 {[%emt 0:00:32]} Kh8 {[%emt 0:00:00]} 14. O-O-O {[%emt 0:07:20]} Rb8 {[%emt 0:00:16]} 15. f5 {[%emt 0:12:13]} b5 {[%emt 0:01:05]} 16. Nf3 {[%emt 0:02:17]} b4 {[%emt 0:04:18]} 17. Ne2 {[%emt 0:02:09]} d5 $2 {[%emt 0:01:04]} (17... Rg8 $14 18. Rdg1 Ba6) 18. Nh4 {[%emt 0:02:09]} Ng8 {[%emt 0:08:35] [#]} (18... Nd4 $142 19. Ng6+ Kg8 20. Nxf8 Qxf8 21. Nxd4 cxd4) 19. Ng6+ $1 {[%emt 0:01:06]} Kg7 {[%emt 0:00:08]} 20. h6+ {[%emt 0:02:59]} Kf7 {[%emt 0:00:16]} 21. Nxf8 {[%emt 0:00:00]} Kxf8 {[%emt 0:00:09]} 22. Kb1 $18 {[%emt 0:04:35]} a5 {[%emt 0:01:05]} 23. Qe3 {[%emt 0:01:28]} Nd4 {[%emt 0:05:16]} 24. Nxd4 {[%emt 0:03:00]} cxd4 {[%emt 0:01:26]} 25. Qg3 {[%emt 0:00:23]} Qe7 {[%emt 0:01:52]} 26. Rdg1 {[%emt 0:02:05]} Qf7 {[%emt 0:00:39]} 27. Bf3 {[%emt 0:00:54]} Ne7 {[%emt 0:00:24]} 28. Bh5 {[%emt 0:00:16]} Qg8 {[%emt 0:00:07]} 29. Qh4 {[%emt 0:00:31]} Qh8 {[%emt 0:00:55]} 30. Rg7 {[%emt 0:00:07]} Ng8 {[%emt 0:00:09]} 31. Rf7+ {[%emt 0:00:08]} 1-0

[Event "White Rook U14 Final 2019"]
[Site "Sochi"]
[Date "2019.06.06"]
[Round "5.34"]
[White "Fomkin, Dmitry"]
[Black "Golbraikh, Leonid"]
[Result "1-0"]
[ECO "C55"]
[WhiteElo "1733"]
[BlackElo "1523"]
[Annotator "NA RC"]
[PlyCount "95"]
[EventDate "2019.06.02"]
[EventCountry "RUS"]
[SourceTitle "playchess.com"]
[Source "ChessBase"]
[SourceQuality "1"]
[TimeControl "5400+30"]

1. e4 {[%emt 0:00:00]} e5 {[%emt 0:00:08]} 2. Nf3 {[%emt 0:00:08]} Nc6 {[%emt 0:00:15]} 3. Bc4 {[%emt 0:00:00]} Nf6 {[%emt 0:00:08]} 4. d3 {[%emt 0:00:09]} h6 {[%emt 0:00:08]} 5. c3 {[%emt 0:00:32]} d6 {[%emt 0:00:17]} 6. h3 {[%emt 0:00:16]} g6 {[%emt 0:00:24]} 7. O-O {[%emt 0:00:41]} Bg7 {[%emt 0:00:08]} 8. Nbd2 {[%emt 0:00:41]} O-O {[%emt 0:00:08]} 9. Re1 {[%emt 0:00:24]} Nh5 {[%emt 0:00:55]} 10. Nf1 {[%emt 0:04:48]} Qf6 {[%emt 0:03:20]} 11. Ne3 {[%emt 0:00:55]} Be6 {[%emt 0:03:22]} 12. b4 {[%emt 0:01:28]} Bd7 {[%emt 0:03:29]} 13. Nd5 {[%emt 0:00:24]} Qd8 {[%emt 0:00:16]} 14. Bb2 {[%emt 0:00:48]} Ne7 {[%emt 0:01:20]} 15. d4 {[%emt 0:00:40]} c6 {[%emt 0:01:44]} 16. Nxe7+ {[%emt 0:00:16]} Qxe7 {[%emt 0:00:08]} 17. a4 {[%emt 0:02:09]} Nf4 {[%emt 0:00:55]} 18. Qc2 {[%emt 0:00:33]} g5 {[%emt 0:00:40]} 19. Rad1 {[%emt 0:01:11]} g4 {[%emt 0:00:24]} 20. Nh2 {[%emt 0:00:32]} gxh3 {[%emt 0:10:49]} 21. g3 {[%emt 0:00:00]} Ng6 {[%emt 0:00:56]} 22. Qe2 {[%emt 0:01:22]} Kh7 {[%emt 0:12:52]} 23. dxe5 {[%emt 0:02:25]} dxe5 {[%emt 0:02:57]} 24. Qh5 {[%emt 0:00:57]} Bc8 {[%emt 0:00:56]} 25. Rd2 {[%emt 0:00:57]} f5 {[%emt 0:04:49]} 26. exf5 {[%emt 0:00:16]} Bxf5 {[%emt 0:03:46]} 27. Red1 {[%emt 0:00:40]} Qg5 {[%emt 0:00:58]} 28. Qxg5 {[%emt 0:02:36]} hxg5 {[%emt 0:00:08]} 29. Rd6 {[%emt 0:01:21]} e4 {[%emt 0:03:46]} 30. Nf1 {[%emt 0:03:37]} Bg4 {[%emt 0:04:36]} 31. Re1 {[%emt 0:00:39]} Ne5 {[%emt 0:03:08]} 32. Be2 {[%emt 0:01:27]} Rf7 {[%emt 0:08:05]} 33. Nh2 {[%emt 0:01:56]} Bxe2 {[%emt 0:04:08]} 34. Rxe2 {[%emt 0:00:07]} Raf8 {[%emt 0:00:59]} 35. Rdd2 {[%emt 0:02:33]} Nc4 {[%emt 0:00:36]} 36. Rc2 {[%emt 0:00:21]} Nxb2 {[%emt 0:00:30]} 37. Rxb2 {[%emt 0:00:07]} Bxc3 {[%emt 0:00:07]} 38. Rbc2 {[%emt 0:01:06]} Bxb4 {[%emt 0:00:30]} 39. Rxe4 {[%emt 0:00:00]} Ba5 {[%emt 0:04:52]} 40. Ng4 {[%emt 0:00:28]} Bb6 {[%emt 0:00:47]} 41. Ree2 {[%emt 0:00:07]} Rf3 {[%emt 0:00:52]} 42. Kh2 {[%emt 0:01:05]} Ra3 {[%emt 0:03:15]} 43. Re7+ {[%emt 0:00:33]} Kg6 {[%emt 0:00:33]} 44. Rce2 {[%emt 0:01:18]} Rf7 {[%emt 0:00:45]} 45. Ne5+ {[%emt 0:00:14]} Kf6 {[%emt 0:01:23]} 46. Rxf7+ {[%emt 0:00:31]} Ke6 {[%emt 0:00:19]} 47. Rxb7 {[%emt 0:00:31]} Bxf2 {[%emt 0:00:19]} 48. Nc4+ {[%emt 0:00:06]} 1-0

[Event "White Rook U14 Final 2019"]
[Site "Sochi"]
[Date "2019.06.06"]
[Round "5.35"]
[White "Grachev, Arseniy"]
[Black "Ponomarev, Andrey A."]
[Result "0-1"]
[ECO "C02"]
[WhiteElo "1192"]
[BlackElo "1919"]
[Annotator "NA RC"]
[PlyCount "50"]
[EventDate "2019.06.02"]
[EventCountry "RUS"]
[SourceTitle "playchess.com"]
[Source "ChessBase"]
[SourceQuality "1"]
[TimeControl "5400+30"]

1. e4 {[%emt 0:00:00]} e6 {[%emt 0:00:00]} 2. d4 {[%emt 0:00:08]} d5 {[%emt 0:00:08]} 3. e5 {[%emt 0:00:00]} c5 {[%emt 0:00:08]} 4. c3 {[%emt 0:00:00]} Nc6 {[%emt 0:00:00]} 5. a3 {[%emt 0:00:24]} Bd7 {[%emt 0:02:34]} 6. Nf3 {[%emt 0:00:25]} Nh6 {[%emt 0:02:55] C02: French: Advance Variation} (6... f6 7. Bd3 Qc7 8. O-O O-O-O 9. Qe2 Nge7 10. b4 c4 11. Bc2 Ng6 12. Re1 Be7 13. a4 fxe5 14. dxe5 Rdf8 15. Na3 Nf4 16. Qd1 Be8 {1-0 (37) Grischuk,A (2737)-Morozevich,A (2676) Doha 2016}) 7. Be3 {[%emt 0:01:12]} Nf5 {[%emt 0:00:08]} 8. b4 {[%emt 0:01:28]} cxd4 {[%emt 0:00:08]} 9. cxd4 {[%emt 0:00:08]} f6 {[%emt 0:02:15]} 10. exf6 {[%emt 0:01:44]} gxf6 $146 {[%emt 0:03:53]} ({Predecessor:} 10... Qxf6 11. Bg5 Qg6 12. h4 Bd6 13. b5 Nd8 14. Bd3 Qf7 15. Ne5 Bxe5 16. dxe5 h6 {1-0 (55) Lopez Pereyra,A (2159)-Garcia Vicente,N (2265) Pontevedra 2004}) 11. Nc3 {[%emt 0:05:14]} Nxe3 {[%emt 0:00:08]} 12. fxe3 {[%emt 0:00:16]} Bg7 {[%emt 0:02:48]} 13. Bd3 {[%emt 0:08:24]} O-O {[%emt 0:01:44]} 14. Qc2 {[%emt 0:04:33]} f5 {[%emt 0:00:24]} 15. h3 {[%emt 0:09:15]} Rc8 {[%emt 0:00:08]} 16. Qd2 $2 {[%emt 0:08:35] [#]} (16. b5 $17 {was worth a try.} Qa5 17. Rc1 (17. bxc6 Rxc6 18. Kd2 Rfc8 $17)) 16... Qc7 $2 {[%emt 0:00:32]} ({Black should try} 16... e5 $1 $19 {[%cal Re5e4]} 17. b5 exd4 18. Nxd5 dxe3 19. Nxe3 Bxa1 20. Qa2+ Rf7 21. bxc6 {[#]} Be6 $1 {[%mdl 576] Discovered Attack} 22. Qxa1 Qxd3) 17. Qf2 $2 {[%emt 0:03:05]} (17. Ne2 $15) 17... Nxd4 {[%emt 0:02:10]} 18. Ne2 {[%emt 0:17:14]} Nxf3+ {[%emt 0:00:39]} 19. gxf3 {[%emt 0:00:00]} Bxa1 {[%emt 0:01:47]} 20. Rg1+ {[%emt 0:04:59]} Bg7 {[%emt 0:00:16]} 21. Qh4 {[%emt 0:04:29]} Qe5 {[%emt 0:06:16]} 22. Qg5 {[%emt 0:05:14] [#]} h6 $1 {[%emt 0:01:33]} 23. Qg2 {[%emt 0:01:27]} Rf7 {[%emt 0:00:16]} 24. f4 {[%emt 0:01:39]} Qxe3 {[%emt 0:00:23]} 25. Bb1 {[%emt 0:00:31]} Rc1# {[%emt 0:00:07]} 0-1